fUST/lending_fUST_20240203
["ID","MTS","AMOUNT","RATE_DAILY","PERIOD"]
[313212536,1706956241379,-500.0,0.00028492,2]
[313212537,1706956241388,-151.0,0.00028493,2]
[313212538,1706956241397,-151.0,0.00028493,2]
[313212539,1706956241406,-157.5,0.00028493,2]
[313212540,1706956241415,-157.5,0.00028493,2]
[313212541,1706956241424,-151.0,0.00028493,2]
[313212542,1706956241433,-3093.31,0.00028493,2]
[313212543,1706956241443,-680.4,0.00028493,2]
[313212544,1706956241452,-500.0,0.00028493,2]
[313212545,1706956241462,-440.24666505,0.00028493,2]
[313212546,1706956241471,-500.0,0.00028493,2]
[313212547,1706956241480,-633.14,0.00028493,2]
[313212548,1706956241489,-687.69,0.00028493,2]
[313212549,1706956241498,-500.0,0.00028493,2]
[313212550,1706956241507,-1212.65,0.00028493,2]
[313212551,1706956241516,-500.0,0.00028493,2]
[313212552,1706956241525,-1278.64,0.00028493,2]
[313212553,1706956241534,-500.0,0.00028493,2]
[313212554,1706956241543,-1676.04,0.00028493,2]
[313212555,1706956241552,-3357.38,0.00028493,2]
[313212556,1706956241561,-153.0,0.00028493,2]
[313212557,1706956241570,-306.0,0.00028493,2]
[313212558,1706956241579,-199.7424242,0.00028493,2]
[313212559,1706956241591,-600.0,0.000285,2]
[313212560,1706956241599,-500.0,0.00028766,2]
[313212561,1706956241609,-500.0,0.00028766,2]
[313212562,1706956241618,-500.0,0.00028766,2]
[313212563,1706956241630,-509.03407911,0.00028766,2]
[313212564,1706956241639,-500.0,0.00028766,2]
[313212565,1706956241648,-500.0,0.00028766,2]
[313212566,1706956241657,-3093.31,0.00028767,2]
[313212567,1706956241742,-680.4,0.00028767,2]
[313212568,1706956241762,-500.0,0.00028767,2]
[313212569,1706956241771,-500.0,0.00028767,2]
[313212570,1706956241781,-633.14,0.00028767,2]
[313212571,1706956241790,-687.69,0.00028767,2]
[313212572,1706956241799,-500.0,0.00028767,2]
[313212573,1706956241809,-1212.65,0.00028767,2]
[313212574,1706956241818,-500.0,0.00028767,2]
[313212575,1706956241827,-1278.64,0.00028767,2]
[313212576,1706956241837,-500.0,0.00028767,2]
[313212577,1706956241846,-1676.04,0.00028767,2]
[313212578,1706956241855,-3357.38,0.00028767,2]
[313212579,1706956241865,-21218.95812351,0.000288,4]
[313212609,1706956244543,-1036.24628758,0.00028491,2]
[313212610,1706956244598,-822.05945319,0.00028491,2]
[313212611,1706956244608,-404.8584929,0.000288,4]
[313212616,1706956245255,-251.39133245,0.000288,4]
[313212617,1706956245267,-665.71040962,0.000288,4]
[313212618,1706956245277,-152.86835164,0.00028853,2]
[313212619,1706956245286,-578.0,0.000289,2]
[313212620,1706956245295,-155.38426279,0.00028996,2]
[313212621,1706956245304,-332.55976769,0.00028996,2]
[313212622,1706956245313,-121.75278346,0.00028996,2]
[313212623,1706956245331,-497.88919544,0.00028996,2]
[313212624,1706956245342,-626.07268073,0.00028996,2]
[313212625,1706956245351,-268.92731927,0.00028997,2]
[313212626,1706956245364,-1112.64156413,0.00028997,2]
[313212627,1706956245374,-2124.97364925,0.00028998,2]
[313212628,1706956245383,-622.52567812,0.00028998,2]
[313212629,1706956245393,-3051.23543775,0.00028998,2]
[313212630,1706956245404,-1137.08,0.00028998,2]
[313212631,1706956245416,-490.1510355,0.00028998,2]
[313212647,1706956246644,-155.02015262,0.0002849,2]
[313212648,1706956246654,-1198.08781989,0.0002849,2]
[313212649,1706956246664,-1389.74,0.0002899,3]
[313212650,1706956246673,-1166.97912434,0.00028998,2]
[313212651,1706956246682,-623.78865561,0.00028998,2]
[313212652,1706956246693,-4035.23334284,0.00028998,2]
[313212653,1706956246702,-176.66328258,0.00028998,2]
[313212654,1706956246711,-1775.26466003,0.00028998,2]
[313212655,1706956246720,-236.88146597,0.00028998,7]
[313212656,1706956246729,-430.51695446,0.00028998,2]
[313212657,1706956246738,-227.64707964,0.00028998,2]
[313212658,1706956246748,-300.0,0.00028998,2]
[313212659,1706956246757,-1359.03551649,0.00028998,2]
[313212660,1706956246769,-470.28296525,0.00028998,2]
[313212661,1706956246778,-496.66534948,0.00028998,2]
[313212664,1706956409344,953.30043614,0.00028998,30]
[313212805,1706957432562,-309.61304631,0.00024104,2]
[313212806,1706957432574,-346.18174268,0.00024104,2]
[313212831,1706957438812,-1202.51095178,0.00024104,2]
[313212832,1706957438822,-651.45454176,0.0002411,2]
[313212833,1706957438831,-2954.63327607,0.00024111,2]
[313212841,1706957441768,-1153.5,0.00024111,2]
[313212842,1706957441822,-2785.82,0.00024111,2]
[313212863,1706957443609,-4261.0,0.00024111,2]
[313212865,1706957443633,-4353.28408295,0.00024111,2]
[313212902,1706957446696,-1624.42819365,0.00024111,2]
[313213017,1706957917463,169.58374,0.00019178,2]
[313213023,1706958169164,24900.0,0.00019202,2]
[313213030,1706958459431,651.45454176,0.000201,2]
[313213031,1706958463002,155.01860223,0.000201,2]
[313213032,1706958466258,1858.30574077,0.000201,2]
[313213033,1706958477936,181.36688281,0.000201,2]
[313213034,1706958478777,2043.1368023,0.000201,2]
[313213035,1706958480277,330.23570657,0.000201,2]
[313213036,1706958482113,155.01860223,0.000201,2]
[313213037,1706958482932,905.4398856,0.000201,2]
[313213038,1706958490040,167.3557263,0.000201,2]
[313213039,1706958502112,2715.79582989,0.000201,2]
[313213040,1706958506642,1244.79842732,0.000201,2]
[313213041,1706958509990,155.01860223,0.000201,2]
[313213042,1706958515191,155.01860223,0.000201,4]
[313213043,1706958517347,1744.20188823,0.000201,2]
[313213044,1706958522417,453.83392897,0.000201,2]
[313213045,1706958531167,155.01860223,0.00018897,3]
[313213046,1706958549344,155.01860223,0.00018897,3]
[313213047,1706958569193,155.01860223,0.00018887,3]
[313213048,1706958572551,169.979322,0.00019378,2]
[313213049,1706958587176,155.01860223,0.00018887,3]
[313213050,1706958603182,155.01860223,0.00018887,3]
[313213093,1706958631758,-155.01860223,0.00020221,2]
[313213094,1706958631768,-1997.51914833,0.00020222,2]
[313213095,1706958631778,-155.01860223,0.00020223,2]
[313213097,1706958631787,-156.25070942,0.00020227,2]
[313213099,1706958631797,-155.50054411,0.00020238,2]
[313213100,1706958631806,-155.79983419,0.00020249,2]
[313213102,1706958631815,-637.36337543,0.0002025,2]
[313213105,1706958631825,-1022.6140421,0.00020897,2]
[313213107,1706958631835,-1590.16323315,0.00020975,2]
[313213109,1706958631846,-394.82954168,0.00020976,2]
[313213111,1706958631856,-2599.29,0.00020976,3]
[313213112,1706958631865,-2166.08,0.00020976,3]
[313213113,1706958631874,-693.32314678,0.00020986,2]
[313213114,1706958631883,-6449.42887079,0.00020986,2]
[313213121,1706958637940,-323.73794636,0.0002022,2]
[313213122,1706958637950,-77415.75171342,0.00020986,2]
[313213123,1706958637959,-6799.23859091,0.00020987,2]
[313213124,1706958637968,-175.56934482,0.00020997,2]
[313213125,1706958637978,-156.46155181,0.00020997,2]
[313213126,1706958637987,-332.43333194,0.00020997,2]
[313213127,1706958637996,-427.16881812,0.00020997,2]
[313213128,1706958638005,-168.18381848,0.00020997,2]
[313213129,1706958638014,-2731.7054627,0.00020997,2]
[313213130,1706958638024,-1253.40736819,0.00020997,2]
[313213131,1706958638033,-157.31955471,0.00020997,2]
[313213132,1706958638042,-454.22950999,0.00020997,2]
[313213133,1706958638051,-1437.9513158,0.00020997,2]
[313213134,1706958638060,-370.69449192,0.00020998,2]
[313213135,1706958638068,-15409.96255632,0.00021,2]
[313213136,1706958638077,-166.666666,0.00021918,2]
[313213137,1706958638086,-1431.45720058,0.00022011,2]
[313213138,1706958638095,-200.0,0.00022121,7]
[313213139,1706958638104,-166.666666,0.00022431,2]
[313213140,1706958638113,-155.01860223,0.00022476,2]
[313213141,1706958638121,-155.01860223,0.00022477,4]
[313213142,1706958638130,-274.95719598,0.00022482,2]
[313213143,1706958638139,-166.666666,0.00022944,2]
[313213144,1706958638148,-9959.98060866,0.00023,2]
[313213145,1706958638157,-1262.10938839,0.00023,2]
[313213146,1706958638166,-166.666666,0.00023456,2]
[313213147,1706958638175,-169.557152,0.00023633,2]
[313213148,1706958638184,-1022.61404206,0.00023897,2]
[313213149,1706958638193,-166.666666,0.00023969,2]
[313213150,1706958638202,-683.46496987,0.00024111,2]
[313213151,1706958638211,-280.0,0.00024333,7]
[313213152,1706958638220,-166.666666,0.00024482,2]
[313213153,1706958638229,-280.0,0.00024658,2]
[313213154,1706958638238,-393.32252844,0.00024893,2]
[313213155,1706958638247,-3119.15,0.00024966,3]
[313213156,1706958638256,-500.0,0.00024975,2]
[313213157,1706958638265,-500.0,0.00024975,2]
[313213158,1706958638275,-433.30308249,0.00024975,2]
[313213159,1706958638283,-500.0,0.00024975,2]
[313213160,1706958638293,-500.0,0.00024975,2]
[313213161,1706958638301,-500.0,0.00024975,2]
[313213162,1706958638311,-500.0,0.00024975,2]
[313213163,1706958638320,-500.0,0.00024975,2]
[313213164,1706958638329,-500.0,0.00024975,2]
[313213165,1706958638339,-500.0,0.00024975,2]
[313213166,1706958638348,-500.0,0.00024975,2]
[313213167,1706958638358,-500.0,0.00024975,2]
[313213168,1706958638368,-500.0,0.00024975,2]
[313213169,1706958638378,-500.0,0.00024975,2]
[313213170,1706958638387,-500.0,0.00024975,2]
[313213171,1706958638396,-500.0,0.00024975,2]
[313213172,1706958638405,-500.0,0.00024975,2]
[313213173,1706958638415,-214.11458046,0.00024975,2]
[313213174,1706958638424,-367.98197927,0.00024975,2]
[313213175,1706958638433,-500.0,0.00024975,2]
[313213176,1706958638442,-500.0,0.00024975,2]
[313213177,1706958638452,-500.0,0.00024975,2]
[313213178,1706958638461,-500.0,0.00024975,2]
[313213179,1706958638471,-500.0,0.00024975,2]
[313213180,1706958638480,-500.0,0.00024975,2]
[313213181,1706958638490,-510.0,0.00024975,2]
[313213182,1706958638499,-500.0,0.00024975,2]
[313213183,1706958638509,-500.0,0.00024975,2]
[313213184,1706958638519,-500.0,0.00024975,2]
[313213185,1706958638528,-500.0,0.00024975,2]
[313213186,1706958638538,-500.0,0.00024975,2]
[313213187,1706958638548,-500.0,0.00024975,2]
[313213188,1706958638558,-500.0,0.00024975,2]
[313213189,1706958638569,-500.0,0.00024975,2]
[313213190,1706958638578,-500.0,0.00024975,2]
[313213191,1706958638587,-500.0,0.00024975,2]
[313213192,1706958638597,-500.0,0.00024975,2]
[313213193,1706958638606,-500.0,0.00024975,2]
[313213194,1706958638617,-500.0,0.00024975,2]
[313213195,1706958638628,-500.0,0.00024975,2]
[313213196,1706958638638,-500.0,0.00024975,2]
[313213197,1706958638648,-500.0,0.00024975,2]
[313213198,1706958638658,-500.0,0.00024975,2]
[313213199,1706958638668,-500.0,0.00024975,2]
[313213200,1706958638678,-500.0,0.00024975,2]
[313213201,1706958638688,-585.88974938,0.00024975,2]
[313213202,1706958638698,-500.0,0.00024975,2]
[313213203,1706958638709,-500.0,0.00024975,2]
[313213204,1706958638720,-500.0,0.00024975,2]
[313213205,1706958638729,-500.0,0.00024975,2]
[313213206,1706958638739,-500.0,0.00024975,2]
[313213207,1706958638749,-500.0,0.00024975,2]
[313213208,1706958638759,-500.0,0.00024975,2]
[313213209,1706958638770,-500.0,0.00024975,2]
[313213210,1706958638779,-500.0,0.00024975,2]
[313213211,1706958638789,-500.0,0.00024975,2]
[313213212,1706958638800,-500.0,0.00024975,2]
[313213213,1706958638810,-500.0,0.00024975,2]
[313213214,1706958638821,-500.0,0.00024975,2]
[313213215,1706958638830,-500.0,0.00024975,2]
[313213216,1706958638839,-500.0,0.00024975,2]
[313213217,1706958638852,-500.0,0.00024975,2]
[313213218,1706958638861,-500.0,0.00024975,2]
[313213219,1706958638870,-500.0,0.00024975,2]
[313213220,1706958638879,-496.70541804,0.00024975,2]
[313213221,1706958638890,-500.0,0.00024975,2]
[313213222,1706958638899,-500.0,0.00024975,2]
[313213223,1706958638909,-500.0,0.00024975,2]
[313213224,1706958638920,-500.0,0.00024975,2]
[313213225,1706958638930,-600.0,0.00024975,2]
[313213226,1706958638942,-500.0,0.00024975,2]
[313213227,1706958638951,-500.0,0.00024975,2]
[313213228,1706958638962,-500.0,0.00024975,2]
[313213229,1706958638971,-500.0,0.00024975,2]
[313213230,1706958638980,-500.0,0.00024975,2]
[313213231,1706958638989,-500.0,0.00024975,2]
[313213232,1706958638999,-500.0,0.00024975,2]
[313213233,1706958639011,-500.0,0.00024975,2]
[313213234,1706958639022,-500.0,0.00024975,2]
[313213235,1706958639033,-500.0,0.00024975,2]
[313213236,1706958639044,-500.0,0.00024975,2]
[313213237,1706958639054,-500.0,0.00024975,2]
[313213238,1706958639063,-500.0,0.00024975,2]
[313213239,1706958639073,-500.0,0.00024975,2]
[313213240,1706958639082,-500.0,0.00024975,2]
[313213241,1706958639093,-500.0,0.00024975,2]
[313213242,1706958639103,-500.0,0.00024975,2]
[313213243,1706958639113,-500.0,0.00024975,2]
[313213244,1706958639122,-500.0,0.00024975,2]
[313213245,1706958639132,-500.0,0.00024975,2]
[313213246,1706958639142,-500.0,0.00024975,2]
[313213247,1706958639152,-580.68919629,0.00024975,2]
[313213248,1706958639162,-500.0,0.00024975,2]
[313213249,1706958639171,-500.0,0.00024975,2]
[313213250,1706958639181,-500.0,0.00024975,2]
[313213251,1706958639190,-500.0,0.00024975,2]
[313213252,1706958639199,-500.0,0.00024975,2]
[313213253,1706958639208,-500.0,0.00024975,2]
[313213254,1706958639217,-500.0,0.00024975,2]
[313213255,1706958639226,-500.0,0.00024975,2]
[313213256,1706958639236,-500.0,0.00024975,2]
[313213258,1706958639245,-500.0,0.00024975,2]
[313213260,1706958639254,-500.0,0.00024975,2]
[313213262,1706958639263,-331.46512935,0.00024975,2]
[313213263,1706958639272,-500.0,0.00024975,2]
[313213264,1706958639282,-500.0,0.00024975,2]
[313213265,1706958639290,-500.0,0.00024975,2]
[313213266,1706958639299,-500.0,0.00024975,2]
[313213267,1706958639308,-500.0,0.00024975,2]
[313213268,1706958639317,-500.0,0.00024975,2]
[313213269,1706958639325,-500.0,0.00024975,2]
[313213270,1706958639334,-155.55040704,0.00024977,2]
[313213271,1706958639343,-14111.21170784,0.00024977,2]
[313213272,1706958639353,-160.15514943,0.00024977,2]
[313213273,1706958639362,-2182.89181002,0.00024977,2]
[313213274,1706958639371,-206.14321919,0.00024977,2]
[313213275,1706958639380,-1595.33128278,0.00024977,2]
[313213276,1706958639390,-5294.26827455,0.00024977,2]
[313213277,1706958639399,-171.08992545,0.00024977,2]
[313213278,1706958639408,-201.22522076,0.00024977,2]
[313213279,1706958639417,-155.99893237,0.00024977,2]
[313213280,1706958639426,-4021.82810221,0.00024977,2]
[313213281,1706958639435,-272.87948714,0.00024977,2]
[313213282,1706958639444,-326.04786116,0.00024978,2]
[313213283,1706958639453,-426.74292046,0.00024978,2]
[313213284,1706958639462,-3975.94482734,0.00024978,2]
[313213285,1706958639471,-680.01303789,0.0002498,2]
[313213286,1706958639481,-1090.25285291,0.0002498,2]
[313213287,1706958639490,-155.30092263,0.0002498,2]
[313213288,1706958639499,-330.99774153,0.0002498,2]
[313213289,1706958639508,-155.27043831,0.0002498,2]
[313213290,1706958639518,-1303.75015145,0.0002498,2]
[313213291,1706958639527,-298.09914587,0.0002498,2]
[313213292,1706958639536,-512.87191441,0.0002498,2]
[313213293,1706958639545,-3371.66940846,0.0002498,2]
[313213294,1706958639554,-474.63521965,0.0002498,2]
[313213295,1706958639563,-156.24259621,0.0002498,2]
[313213296,1706958639572,-6007.40454113,0.0002498,2]
[313213297,1706958639581,-1585.15053624,0.00024981,2]
[313213298,1706958639590,-2350.73001627,0.00024993,2]
[313213299,1706958639599,-531.00188907,0.00024993,2]
[313213300,1706958639608,-50000.0,0.00024993,2]
[313213301,1706958639617,-50000.0,0.00024993,2]
[313213302,1706958639626,-79108.39290581,0.00024993,2]
[313213303,1706958639635,-151.0,0.00024993,2]
[313213304,1706958639644,-151.0,0.00024993,2]
[313213305,1706958639653,-151.457837,0.00024993,2]
[313213306,1706958639662,-153.948692,0.00024993,2]
[313213307,1706958639671,-151.0,0.00024993,2]
[313213308,1706958639681,-157.5,0.00024993,2]
[313213309,1706958639690,-157.5,0.00024993,2]
[313213310,1706958639699,-151.0,0.00024993,2]
[313213311,1706958639707,-151.0,0.00024993,2]
[313213312,1706958639717,-248.687395,0.00024993,2]
[313213313,1706958639726,-151.0,0.00024993,2]
[313213314,1706958639735,-151.0,0.00024993,2]
[313213315,1706958639744,-151.34148,0.00024993,2]
[313213316,1706958639753,-151.0,0.00024993,2]
[313213317,1706958639762,-2166.089543,0.00024993,2]
[313213318,1706958639771,-2166.089543,0.00024993,2]
[313213319,1706958639781,-3301.72077498,0.00025004,2]
[313213320,1706958639790,-708.17968144,0.0002508,2]
[313213321,1706958639799,-151.0,0.00026026,2]
[313213325,1706958639881,-624.40898407,0.00026334,2]
[313213326,1706958639906,-393.32252843,0.00026338,2]
[313213328,1706958639915,-391.0,0.00026766,15]
[313213330,1706958639924,-399.0557995,0.00026849,2]
[313213332,1706958639935,-199.2249462,0.00026849,2]
[313213334,1706958639945,-1022.61404206,0.00026898,3]
[313213336,1706958639954,-1431.45720058,0.00027011,2]
[313213337,1706958639963,-151.0,0.0002706,2]
[313213338,1706958639972,-492.8939951,0.00027395,2]
[313213339,1706958639981,-5218.09776125,0.00027395,2]
[313213340,1706958639991,-302.47163641,0.00027395,2]
[313213341,1706958640000,-167.51356492,0.00027395,2]
[313213342,1706958640009,-243.56760714,0.00027395,2]
[313213343,1706958640018,-622.56302344,0.00027395,2]
[313213344,1706958640027,-1269.03668577,0.00027395,2]
[313213345,1706958640036,-1775.26466003,0.00027395,2]
[313213346,1706958640045,-500.0,0.00027395,2]
[313213347,1706958640055,-155.26180252,0.00027396,2]
[313213348,1706958640064,-156.09828571,0.00027396,2]
[313213349,1706958640073,-500.0,0.00027397,2]
[313213350,1706958640082,-256.16612784,0.00027397,2]
[313213351,1706958640091,-500.0,0.00027397,2]
[313213352,1706958640100,-498.22304913,0.00027397,2]
[313213353,1706958640108,-500.0,0.00027397,2]
[313213354,1706958640117,-500.0,0.00027397,2]
[313213355,1706958640126,-500.0,0.00027397,2]
[313213356,1706958640135,-151.0,0.00027397,2]
[313213357,1706958640144,-156.7077904,0.00027397,2]
[313213358,1706958640153,-400.0,0.00027397,2]
[313213359,1706958640161,-151.0,0.00027397,2]
[313213360,1706958640170,-500.0,0.00027397,2]
[313213361,1706958640179,-500.0,0.00027397,2]
[313213362,1706958640188,-505.54337339,0.00027397,2]
[313213363,1706958640197,-501.60650217,0.00027397,2]
[313213364,1706958640205,-500.0,0.00027397,2]
[313213365,1706958640214,-500.23827498,0.00027397,2]
[313213366,1706958640223,-500.0,0.00027397,2]
[313213367,1706958640233,-500.0,0.00027397,2]
[313213368,1706958640243,-500.0,0.00027397,2]
[313213369,1706958640252,-500.0,0.00027397,2]
[313213370,1706958640263,-296.04419371,0.00027397,2]
[313213371,1706958640273,-500.0,0.00027397,2]
[313213372,1706958640282,-500.0,0.00027397,2]
[313213373,1706958640291,-500.0,0.00027397,2]
[313213374,1706958640302,-500.0,0.00027397,2]
[313213375,1706958640312,-504.59476754,0.00027397,2]
[313213376,1706958640322,-299.73002939,0.00027397,2]
[313213377,1706958640332,-500.0,0.00027397,2]
[313213378,1706958640341,-500.0,0.00027397,2]
[313213379,1706958640350,-157.5,0.00027397,2]
[313213380,1706958640359,-157.5,0.00027397,2]
[313213381,1706958640369,-151.0,0.00027397,2]
[313213382,1706958640379,-151.0,0.00027397,2]
[313213383,1706958640389,-249.961883,0.00027397,2]
[313213384,1706958640398,-208.6416297,0.00027397,2]
[313213385,1706958640407,-151.0,0.00027397,2]
[313213386,1706958640417,-508.20297519,0.00027397,2]
[313213387,1706958640427,-500.0,0.00027397,2]
[313213388,1706958640436,-500.0,0.00027397,2]
[313213389,1706958640446,-447.30589767,0.00027397,2]
[313213390,1706958640455,-889.46,0.00027397,2]
[313213391,1706958640466,-500.0,0.00027397,2]
[313213392,1706958640475,-500.0,0.00027397,2]
[313213393,1706958640484,-560.15,0.00027397,2]
[313213394,1706958640494,-500.0,0.00027397,2]
[313213395,1706958640503,-3868.39,0.00027397,2]
[313213396,1706958640512,-992.33,0.00027397,2]
[313213397,1706958640521,-500.0,0.00027397,2]
[313213398,1706958640531,-500.0,0.00027397,2]
[313213399,1706958640540,-500.0,0.00027397,2]
[313213400,1706958640549,-500.0,0.00027397,2]
[313213401,1706958640558,-152.505591,0.00027397,2]
[313213402,1706958640569,-500.0,0.00027397,2]
[313213403,1706958640579,-2166.089543,0.00027397,2]
[313213404,1706958640588,-2166.089543,0.00027397,2]
[313213405,1706958640597,-500.0,0.00027397,2]
[313213406,1706958640607,-500.0,0.00027397,2]
[313213407,1706958640616,-844.23,0.00027397,2]
[313213408,1706958640624,-500.0,0.00027397,2]
[313213409,1706958640633,-500.0,0.00027397,2]
[313213410,1706958640642,-1549.1,0.00027397,2]
[313213411,1706958640651,-500.0,0.00027397,2]
[313213412,1706958640660,-500.0,0.00027397,2]
[313213413,1706958640669,-503.49271453,0.00027397,2]
[313213414,1706958640678,-500.0,0.00027397,2]
[313213416,1706958640686,-500.0,0.00027397,2]
[313213418,1706958640695,-1609.59,0.00027397,2]
[313213419,1706958640705,-500.0,0.00027397,2]
[313213421,1706958640713,-500.0,0.00027397,2]
[313213423,1706958640722,-502.36653154,0.00027397,2]
[313213425,1706958640731,-500.0,0.00027397,2]
[313213427,1706958640741,-500.0,0.00027397,2]
[313213429,1706958640750,-500.0,0.00027397,2]
[313213431,1706958640759,-282.39,0.00027397,2]
[313213433,1706958640768,-2168.68,0.00027397,2]
[313213435,1706958640777,-502.86,0.00027397,2]
[313213437,1706958640787,-500.0,0.00027397,2]
[313213439,1706958640796,-506.75800662,0.00027397,2]
[313213441,1706958640805,-16960.85,0.00027397,2]
[313213443,1706958640814,-500.0,0.00027397,2]
[313213445,1706958640824,-3261.98,0.00027397,2]
[313213447,1706958640833,-500.0,0.00027397,2]
[313213449,1706958640842,-151.0,0.00027397,2]
[313213451,1706958640852,-500.0,0.00027397,2]
[313213453,1706958640863,-1000.0,0.000274,5]
[313213455,1706958640872,-18543.54304821,0.000275,2]
[313213457,1706958640881,-600.0,0.000275,2]
[313213460,1706958640896,-151.0,0.000275,2]
[313213461,1706958640905,-151.0,0.000275,2]
[313213463,1706958640914,-151.0,0.000275,2]
[313213465,1706958640923,-2166.089543,0.000275,2]
[313213467,1706958640933,-2166.089543,0.000275,2]
[313213469,1706958640942,-151.001804,0.000275,2]
[313213471,1706958640951,-620.2204492,0.00027651,2]
[313213473,1706958640960,-157.5,0.00027668,2]
[313213475,1706958640969,-157.5,0.00027668,2]
[313213477,1706958640978,-500.0,0.00027669,2]
[313213478,1706958640987,-537.55534782,0.00027669,2]
[313213479,1706958640997,-500.0,0.00027669,2]
[313213480,1706958641006,-500.0,0.00027669,2]
[313213481,1706958641015,-160.97379388,0.00027669,2]
[313213482,1706958641024,-500.0,0.00027669,2]
[313213483,1706958641033,-231.14549736,0.00027669,2]
[313213484,1706958641042,-500.0,0.00027669,2]
[313213485,1706958641051,-512.91757814,0.00027669,2]
[313213486,1706958641060,-500.0,0.00027669,2]
[313213487,1706958641069,-500.0,0.00027669,2]
[313213488,1706958641078,-500.0,0.00027669,2]
[313213489,1706958641087,-441.0192481,0.00027669,2]
[313213490,1706958641097,-500.0,0.00027669,2]
[313213491,1706958641106,-177.05054153,0.00027669,2]
[313213492,1706958641115,-500.0,0.00027669,2]
[313213494,1706958641123,-464.26228076,0.00027669,2]
[313213495,1706958641133,-500.0,0.00027669,2]
[313213497,1706958641142,-500.0,0.00027669,2]
[313213499,1706958641151,-500.0,0.00027669,2]
[313213501,1706958641161,-500.0,0.00027669,2]
[313213503,1706958641170,-500.0,0.00027669,2]
[313213505,1706958641179,-500.0,0.00027669,2]
[313213507,1706958641189,-500.0,0.00027669,2]
[313213509,1706958641198,-500.0,0.00027669,2]
[313213511,1706958641207,-500.0,0.00027671,2]
[313213513,1706958641216,-500.0,0.00027671,2]
[313213515,1706958641225,-500.0,0.00027671,2]
[313213517,1706958641234,-500.0,0.00027671,2]
[313213519,1706958641243,-151.0,0.00027671,2]
[313213521,1706958641252,-151.0,0.00027671,2]
[313213523,1706958641262,-197.65808032,0.00027671,2]
[313213525,1706958641274,-500.0,0.00027671,2]
[313213527,1706958641283,-500.0,0.00027671,2]
[313213529,1706958641292,-500.0,0.00027671,2]
[313213531,1706958641301,-500.0,0.00027671,2]
[313213532,1706958641310,-500.0,0.00027671,2]
[313213534,1706958641319,-157.5,0.00027671,2]
[313213536,1706958641328,-157.5,0.00027671,2]
[313213537,1706958641338,-151.0,0.00027671,2]
[313213539,1706958641347,-151.0,0.00027671,2]
[313213541,1706958641356,-151.0,0.00027671,2]
[313213543,1706958641365,-889.46,0.00027671,2]
[313213544,1706958641374,-500.0,0.00027671,2]
[313213545,1706958641383,-500.0,0.00027671,2]
[313213547,1706958641392,-560.15,0.00027671,2]
[313213549,1706958641402,-3868.39,0.00027671,2]
[313213551,1706958641411,-992.33,0.00027671,2]
[313213552,1706958641420,-500.0,0.00027671,2]
[313213553,1706958641430,-500.0,0.00027671,2]
[313213554,1706958641440,-500.0,0.00027671,2]
[313213555,1706958641450,-500.0,0.00027671,2]
[313213556,1706958641459,-500.0,0.00027671,2]
[313213557,1706958641468,-2166.089543,0.00027671,2]
[313213558,1706958641477,-2166.089543,0.00027671,2]
[313213559,1706958641487,-500.0,0.00027671,2]
[313213560,1706958641496,-500.0,0.00027671,2]
[313213561,1706958641505,-844.23,0.00027671,2]
[313213562,1706958641515,-500.0,0.00027671,2]
[313213563,1706958641524,-1549.1,0.00027671,2]